Workbook

Sheet Instructies
A1: Invulinstructies VREG | B1: 2020-08-13
A3: 1. Tabblad 'Q%':
A4: a. Jaar waarin q-factor wordt bepaald (voorafgaand aan nieuwe reguleringsperiode)
A5: b. Aantal jaren van de volgende reguleringsperiode
A6: a. Aantal jaren beoordeeld per kwaliteitsonderdeel.
A7: 2. Tabblad 'Data'
A8: a. Data m.b.t. 'aantal actieve toegangspunten' in te vullen door de VREG volgens rapportering door distributienetbeheerders;
A9: b. Data m.b.t. 'toegelaten inkomen endogene kosten' in te vullen door de VREG volgens definitieve berekening VREG.
A10: 3. Vervolgens invullen kwaliteitsdata per kwaliteitsindicator door de VREG:
A11: a. Tabbladen 'A1', 'A2' ,'A3' en 'A4' volgens rapportering distributienetbeheerders;
A12: b. Tabbladen 'D1' en 'D2' volgens rapportering distributienetbeheerders;
A13: 4. Tabblad 'Sorteren':
A14: Manueel overzetten van de eindscore per distributienetbeheerder en rangschikken van hoog naar laag
A15: 5. Tabblad 'Berekeningsmodel Q E'
A16: Manueel invullen van bedragen cap/floor (blauwe cellen).
A17: 6. Tabblad 'Berekeningsmodel Q G'
A18: Manueel invullen van bedragen cap/floor (blauwe cellen).

Sheet Q%
A1: Waardering kwaliteitsindicatoren distributienetbeheerders Vlaanderen
B3: Waarden in blauwe cellen in te vullen door de VREG.
D5: Het jaar waarin de q-factor wordt bepaald: | E5: 2024
E8: jaar 1 | F8: jaar 2 | G8: jaar 3 | H8: jaar 4 | I8: jaar 5 | J8: jaar 6 | K8: jaar 7
B9: Jaren van de volgende reguleringsperiode: | C9: 4 | D9: : | E9: =+E5+1 -> 2025 | F9: =IF($C9>1,$E5+2,"") -> 2026 | G9: =IF($C9>2,$E5+3,"") -> 2027 | H9: =IF($C9>3,$E5+4,"") -> 2028 | I9: =IF($C9>4,$E5+5,"") ->  | J9: =IF($C9>5,$E5+6,"") ->  | K9: =IF($C9>6,$E5+7,"") -> 
A11: Code | B11: Kwaliteitsindicator | C11: Voor activiteit | E11: Te verdelen punten onder de distributienetbeheerders per activiteit en per beoordeeld jaar | H11: Minimum aantal jaren beoordeling van de indicator | I11: ="Het aantal jaren waarvoor de distributienet-beheerders op dit kwaliteitsaspect beoordeeld worden" -> Het aantal jaren waarvoor de distributienet-beheerders op dit kwaliteitsaspect beoordeeld worden | L11: Te verdelen punten onder de distributienetbeheerders voor prestaties mbt deze indicator in de beoordelingsperiode | N11: ELEK | P11: AARDGAS
I13: beoordelingsperiode
E14: totaal punten per jaar | F14: verdeling | G14: punten per jaar | I14: van | J14: tot en met
A15: A1 | B15: Onderbrekingsfrequentie middenspanningsnet in jaar j | C15: Elekt. | D15: n.v.t. | E15: 400 | F15: 0.385 | G15: =+F15*E15 -> 154 | H15: 3 | I15: 2020 | J15: 2023 | K15: =+J15-I15+1 -> 4 | L15: =IF(K15<H15,0,K15*G15) -> 616 | N15: =+L15 -> 616 | P15: n.v.t.
A16: A2 | B16: Onderbrekingsduur middenspanningsnet in jaar j | C16: Elekt. | F16: 0.315 | G16: =+F16*E15 -> 126 | H16: 3 | I16: 2020 | J16: 2023 | K16: =+J16-I16+1 -> 4 | L16: =IF(K16<H16,0,K16*G16) -> 504 | N16: 504
A17: A3 | B17: Onderbrekingsfrequentie laagspanningsnet in jaar j | C17: Elekt. | F17: 0.165 | G17: =+F17*E15 -> 66 | H17: 3 | I17: 2020 | J17: 2023 | K17: 4 | L17: 264 | N17: 264
A18: A4 | B18: Onderbrekingsduur laagspanningsnet in jaar j | C18: Elekt. | F18: =1-F17-F16-F15 -> 0.135 | G18: =+F18*E15 -> 54 | H18: 3 | I18: 2020 | J18: 2023 | K18: 4 | L18: 216 | N18: 216
A19: D1 | B19: Som van de forfaitaire vergoedingen betaald door de distributienetbeheerder in jaar j wegens laattijdige nieuwe aansluiting, overeenkomstig Energiedecreet, relatief t.o.v. het aantal gerealiseerde aansluitingen | C19: Elekt. | D19: Aardgas | E19: 25 | F19: 0.8 | G19: =+F19*E19 -> 20 | H19: 2 | I19: 2020 | J19: 2023 | K19: 4 | L19: 80 | N19: 80 | P19: =+L19 -> 80
A20: D2 | B20: Som van de forfaitaire vergoedingen betaald door de distributienetbeheerder in jaar j wegens laattijdige heraansluiting, overeenkomstig Energiedecreet, relatief t.o.v. het aantal gerealiseerde heraansluitingen | C20: Elekt. | D20: Aardgas | F20: =1-F19 -> 0.2 | G20: =+F20*E19 -> 5 | H20: 2 | I20: 2020 | J20: 2023 | K20: 4 | L20: =IF(K20<H20,0,K20*G20) -> 20 | N20: 20 | P20: =+L20 -> 20
D22: aantal punten per beoordelingsjaar voor elektriciteit: | E22: =+E15+E19 -> 425 | M22: totaal punten | N22: =SUM(N15:N20) -> 1700 | P22: =SUM(P19:P20) -> 100
D23: aantal punten per beoordelingsjaar voor aardgas: | E23: =+E19 -> 25 | M23: max punten per jaar | N23: =+E22 -> 425 | P23: =+E23 -> 25
M24: equivalent aantal jaren | N24: =+ROUND(N22/N23,2) -> 4 | P24: =+P22/P23 -> 4
D25: % van basisgedeelte endogeen budget in de balans per volledig beoordelingsjaar (Q-bedrag): | M25: in vergelijking met de volgende reguleringsperiode | N25: =+N24/C9 -> 1 | P25: =+P24/C9 -> 1
D26: Elektriciteit: | E26: =1.125%*(425/600) -> 0.00796875
D27: Aardgas: | E27: =+E26*E23/E22 -> 0.00046875 | M27: % basisgedeelte endogeen inkomen (Q%) in reguleringsperiode: | N27: =ROUND(E26*N25,5) -> 0.00797 | P27: =ROUND(E27*P25,5) -> 0.00047
D29: pro rata cap/floor impact op TI: | M29: cap/floor in reguleringsperiode | N29: =+ROUND(N25*E30,5) -> 0.01063 | P29: =+ROUND(P25*E31,5) -> 0.00063
D30: Elektriciteit: +/- | E30: =1.5%*(0.708333333333333) -> 0.010625
D31: Aardgas:+/- | E31: =+E30*E23/E22 -> 0.000625

Sheet Data
B1: Gegevens betreffende aantal actieve toegangspunten en oorspronkelijk toegelaten inkomen niet-exogene kosten in volgende reguleringsperiode
E3: Waarden uit jaarlijkse rapportering m.b.t. kwaliteit dienstverlening door iedere
E4: distributienetbeheerder afzonderlijk (in te vullen door de VREG).
B7: Distributienetbeheerder | C7: Naam | D7: Aantal actieve toegangspunten elektriciteit op 1 juli van het jaar | J7: ="Aantal actieve toegangspunten elektriciteit op 1 januari "&'Q%'!E5 -> Aantal actieve toegangspunten elektriciteit op 1 januari 2024 | K7: ="Totaal oorspronkelijk toegelaten inkomen endogene kosten (zonder kwaliteitsprestatie-invloed) voor het eerste jaar van de volgende reguleringsperiode "&'Q%'!$E$5+1 -> Totaal oorspronkelijk toegelaten inkomen endogene kosten (zonder kwaliteitsprestatie-invloed) voor het eerste jaar van de volgende reguleringsperiode 2025 | L7: ="Oorspronkelijk toegelaten inkomen endogene kosten basisgedeelte (zonder kwaliteitsprestatie-invloed) voor het eerste jaar van de volgende reguleringsperiode "&'Q%'!$E$5+1 -> Oorspronkelijk toegelaten inkomen endogene kosten basisgedeelte (zonder kwaliteitsprestatie-invloed) voor het eerste jaar van de volgende reguleringsperiode 2025
D8: =DATE(MIN('Q%'!I15:I20),7,1) -> 2020-07-01 | E8: =IF(2<=MAX('Q%'!$K$15:$K$20),DATE(YEAR(D8)+1,7,1),"") -> 2021-07-01 | F8: =IF(3<=MAX('Q%'!$K$15:$K$20),DATE(YEAR(E8)+1,7,1),"") -> 2022-07-01 | G8: =IF(4<=MAX('Q%'!$K$15:$K$20),DATE(YEAR(F8)+1,7,1),"") -> 2023-07-01 | H8: =IF(5<=MAX('Q%'!$K$15:$K$20),DATE(YEAR(G8)+1,7,1),"") ->  | I8: =IF(6<=MAX('Q%'!$K$15:$K$20),DATE(YEAR(H8)+1,7,1),"") ->  | J8: =DATE('Q%'!E5,1,1) -> 2024-01-01 | K8: =+'Q%'!$E$5+1 -> 2025 | L8: =+'Q%'!$E$5+1 -> 2025
B9: dnb1 | C9: Gaselwest | J9: =CEILING(G9*1.02,1) -> 0
B10: dnb2 | C10: Fluvius Antwerpen | J10: =CEILING(G10*1.02,1) -> 0
B11: dnb3 | C11: Fluvius Limburg | J11: 0
B12: dnb4 | C12: Fluvius West | J12: 0
B13: dnb5 | C13: Imewo | J13: 0
B14: dnb6 | C14: Intergem | J14: 0
B15: dnb7 | C15: Iveka | J15: 0
B16: dnb8 | C16: Iverlek | J16: 0
B17: dnb9 | C17: PBE | J17: 0
B18: dnb10 | C18: Sibelgas | J18: 0
D19: =SUM(D9:D18) -> 0 | E19: =SUM(E9:E18) -> 0 | F19: =SUM(F9:F18) -> 0 | H19: =SUM(H9:H18) -> 0 | I19: =SUM(I9:I18) -> 0 | J19: =SUM(J9:J18) -> 0 | K19: =SUM(K9:K18) -> 0 | L19: =SUM(L9:L18) -> 0
B21: Distributienetbeheerder | D21: Aantal actieve toegangspunten aardgas 1 juli van het jaar | J21: ="Aantal actieve toegangspunten aardgas op 1 januari "&'Q%'!E5 -> Aantal actieve toegangspunten aardgas op 1 januari 2024 | K21: =+K7 -> Totaal oorspronkelijk toegelaten inkomen endogene kosten (zonder kwaliteitsprestatie-invloed) voor het eerste jaar van de volgende reguleringsperiode 2025 | L21: =+L7 -> Oorspronkelijk toegelaten inkomen endogene kosten basisgedeelte (zonder kwaliteitsprestatie-invloed) voor het eerste jaar van de volgende reguleringsperiode 2025
D22: =DATE(MIN('Q%'!I15:I20),7,1) -> 2020-07-01 | E22: =IF(2<=MAX('Q%'!$K$15:$K$20),DATE(YEAR(D22)+1,7,1),"") -> 2021-07-01 | F22: =IF(3<=MAX('Q%'!$K$15:$K$20),DATE(YEAR(E22)+1,7,1),"") -> 2022-07-01 | G22: =IF(4<=MAX('Q%'!$K$15:$K$20),DATE(YEAR(F22)+1,7,1),"") -> 2023-07-01 | H22: =IF(5<=MAX('Q%'!$K$15:$K$20),DATE(YEAR(G22)+1,7,1),"") ->  | I22: =IF(6<=MAX('Q%'!$K$15:$K$20),DATE(YEAR(H22)+1,7,1),"") ->  | J22: =+J8 -> 2024-01-01 | K22: =+'Q%'!$E$5+1 -> 2025 | L22: =+'Q%'!$E$5+1 -> 2025
B23: dnb1 | C23: Gaselwest
B24: dnb2 | C24: Fluvius Antwerpen
B25: dnb3 | C25: Fluvius Limburg
B26: dnb4 | C26: Fluvius West
B27: dnb5 | C27: Imewo
B28: dnb6 | C28: Intergem
B29: dnb7 | C29: Iveka
B30: dnb8 | C30: Iverlek
B31: dnb9 | C31: Sibelgas
D32: =SUM(D23:D31) -> 0 | E32: =SUM(E23:E31) -> 0 | F32: =SUM(F23:F31) -> 0 | H32: =SUM(H23:H31) -> 0 | I32: =SUM(I23:I31) -> 0 | J32: =SUM(J23:J31) -> 0 | K32: =SUM(K23:K31) -> 0 | L32: =SUM(L23:L31) -> 0

Sheet A1
A1: Onderbrekingsfrequentie middenspanning
D3: Waarden uit jaarlijkse rapportering m.b.t. kwaliteit dienstverlening door iedere
D4: distributienetbeheerder afzonderlijk (in te vullen door de VREG).
M6: Puntenverdeling
C7: =IF('Q%'!$K$15<3,"n.v.t.",'Q%'!$E$5-'Q%'!$K$15) -> 2020 | D7: =IF('Q%'!$K$15<3,"n.v.t.",'Q%'!$E$5-'Q%'!$K$15+1) -> 2021 | E7: =IF('Q%'!$K$15<3,"n.v.t.",'Q%'!$E$5-'Q%'!$K$15+2) -> 2022 | F7: =IF('Q%'!$K$15<=3,"n.v.t.",'Q%'!$E$5-'Q%'!$K$15+3) -> 2023 | G7: =IF('Q%'!$K$15<=4,"n.v.t.",'Q%'!$E$5-'Q%'!$K$15+4) -> n.v.t. | H7: =IF('Q%'!$K$15<=5,"n.v.t.",'Q%'!$E$5-'Q%'!$K$15+5) -> n.v.t. | I7: Gemiddelde | J7: Normalisatie | K7: Formule inverse exponent | M7: 1 basis | N7: 2 prestatie beter dan gemiddelde | O7: 3 herverdeling
B8: =+Data!C9 -> Gaselwest | I8: =AVERAGE(C8:H8) ->  | J8: =+I8/MAX($I$8:$I$17) ->  | K8: =1/EXP(J8) ->  | M8: =ROUND($K$20*K8/$K$18,2) ->  | N8: =IF(I8<$I$18,"ja","nee") ->  | O8: =IF(N8="ja",SUMIF($N$8:$N$17,"ja",$M$8:$M$17)/COUNTIF($N$8:$N$17,"ja"),M8) -> 
B9: =+Data!C10 -> Fluvius Antwerpen | K9: =1/EXP(J9) -> 
B10: =+Data!C11 -> Fluvius Limburg
B11: =+Data!C12 -> Fluvius West
B12: =+Data!C13 -> Imewo
B13: =+Data!C14 -> Intergem
B14: =+Data!C15 -> Iveka
B15: =+Data!C16 -> Iverlek
B16: =+Data!C17 -> PBE
B17: =+Data!C18 -> Sibelgas
H18: gemiddelde: | I18: =AVERAGE(I8:I17) ->  | J18: Totaal: | K18: =SUM(K8:K17) ->  | M18: =SUM(M8:M17) ->  | O18: =SUM(O8:O17) -> 
I20: Totaal te verdelen punten: | K20: =+'Q%'!N15 -> 616

Sheet A2
A1: Onderbrekingsduur middenspanning
C3: hh:mm:ss | D3: Waarden uit jaarlijkse rapportering m.b.t. kwaliteit dienstverlening door iedere
D4: distributienetbeheerder afzonderlijk (in te vullen door de VREG).
M6: Puntenverdeling
C7: =IF('Q%'!$K$16<3,"n.v.t.",'Q%'!$E$5-'Q%'!$K$16) -> 2020 | D7: =IF('Q%'!$K$16<3,"n.v.t.",'Q%'!$E$5-'Q%'!$K$16+1) -> 2021 | E7: =IF('Q%'!$K$16<3,"n.v.t.",'Q%'!$E$5-'Q%'!$K$16+2) -> 2022 | F7: =IF('Q%'!$K$16<=3,"n.v.t.",'Q%'!$E$5-'Q%'!$K$16+3) -> 2023 | G7: =IF('Q%'!$K$16<=4,"n.v.t.",'Q%'!$E$5-'Q%'!$K$16+4) -> n.v.t. | H7: =IF('Q%'!$K$16<=5,"n.v.t.",'Q%'!$E$5-'Q%'!$K$16+5) -> n.v.t. | I7: Gemiddelde | J7: Normalisatie | K7: Formule inverse exponent | M7: 1 basis | N7: 2 prestatie beter dan gemiddelde | O7: 3 herverdeling
B8: =+Data!C9 -> Gaselwest | I8: =AVERAGE(C8:H8) ->  | J8: =+I8/MAX($I$8:$I$17) ->  | K8: =1/EXP(J8) ->  | M8: =ROUND($K$20*K8/$K$18,2) ->  | N8: =IF(I8<$I$18,"ja","nee") ->  | O8: =IF(N8="ja",SUMIF($N$8:$N$17,"ja",$M$8:$M$17)/COUNTIF($N$8:$N$17,"ja"),M8) -> 
B9: =+Data!C10 -> Fluvius Antwerpen | K9: =1/EXP(J9) -> 
B10: =+Data!C11 -> Fluvius Limburg
B11: =+Data!C12 -> Fluvius West
B12: =+Data!C13 -> Imewo
B13: =+Data!C14 -> Intergem
B14: =+Data!C15 -> Iveka
B15: =+Data!C16 -> Iverlek
B16: =+Data!C17 -> PBE
B17: =+Data!C18 -> Sibelgas
H18: gemiddelde: | I18: =AVERAGE(I8:I17) ->  | J18: Totaal: | K18: =SUM(K8:K17) ->  | M18: =SUM(M8:M17) ->  | O18: =SUM(O8:O17) -> 
I20: Totaal te verdelen punten: | K20: =+'Q%'!N16 -> 504

Sheet A3
A1: Onderbrekingsfrequentie laagspanning
D3: Waarden uit jaarlijkse rapportering m.b.t. kwaliteit dienstverlening door iedere
D4: distributienetbeheerder afzonderlijk (in te vullen door de VREG).
M6: Puntenverdeling
C7: =IF('Q%'!$K$17<3,"n.v.t.",'Q%'!$E$5-'Q%'!$K$17) -> 2020 | D7: =IF('Q%'!$K$17<3,"n.v.t.",'Q%'!$E$5-'Q%'!$K$17+1) -> 2021 | E7: =IF('Q%'!$K$17<3,"n.v.t.",'Q%'!$E$5-'Q%'!$K$17+2) -> 2022 | F7: =IF('Q%'!$K$17<=3,"n.v.t.",'Q%'!$E$5-'Q%'!$K$17+3) -> 2023 | G7: =IF('Q%'!$K$17<=4,"n.v.t.",'Q%'!$E$5-'Q%'!$K$17+4) -> n.v.t. | H7: =IF('Q%'!$K$17<=5,"n.v.t.",'Q%'!$E$5-'Q%'!$K$17+5) -> n.v.t. | I7: Gemiddelde | J7: Normalisatie | K7: Formule inverse exponent | M7: 1 basis | N7: 2 prestatie beter dan gemiddelde | O7: 3 herverdeling
B8: =+Data!C9 -> Gaselwest | I8: =AVERAGE(B8:H8) ->  | J8: =+I8/MAX($I$8:$I$17) ->  | K8: =1/EXP(J8) ->  | M8: =ROUND($K$20*K8/$K$18,2) ->  | N8: =IF(I8<$I$18,"ja","nee") ->  | O8: =IF(N8="ja",SUMIF($N$8:$N$17,"ja",$M$8:$M$17)/COUNTIF($N$8:$N$17,"ja"),M8) -> 
B9: =+Data!C10 -> Fluvius Antwerpen | K9: =1/EXP(J9) -> 
B10: =+Data!C11 -> Fluvius Limburg
B11: =+Data!C12 -> Fluvius West
B12: =+Data!C13 -> Imewo
B13: =+Data!C14 -> Intergem
B14: =+Data!C15 -> Iveka
B15: =+Data!C16 -> Iverlek
B16: =+Data!C17 -> PBE
B17: =+Data!C18 -> Sibelgas
H18: gemiddelde: | I18: =AVERAGE(I8:I17) ->  | J18: Totaal: | K18: =SUM(K8:K17) ->  | M18: =SUM(M8:M17) ->  | O18: =SUM(O8:O17) -> 
I20: Totaal te verdelen punten: | K20: =+'Q%'!N17 -> 264

Sheet A4
A1: Onderbrekingsduur laagspanning
C3: hh:mm:ss | D3: Waarden uit jaarlijkse rapportering m.b.t. kwaliteit dienstverlening door iedere
D4: distributienetbeheerder afzonderlijk (in te vullen door de VREG).
H5: 01:00:00
M6: Puntenverdeling
C7: =IF('Q%'!$K$18<3,"n.v.t.",'Q%'!$E$5-'Q%'!$K$18) -> 2020 | D7: =IF('Q%'!$K$18<3,"n.v.t.",'Q%'!$E$5-'Q%'!$K$18+1) -> 2021 | E7: =IF('Q%'!$K$18<3,"n.v.t.",'Q%'!$E$5-'Q%'!$K$18+2) -> 2022 | F7: =IF('Q%'!$K$18<=3,"n.v.t.",'Q%'!$E$5-'Q%'!$K$18+3) -> 2023 | G7: =IF('Q%'!$K$18<=4,"n.v.t.",'Q%'!$E$5-'Q%'!$K$18+4) -> n.v.t. | H7: =IF('Q%'!$K$18<=5,"n.v.t.",'Q%'!$E$5-'Q%'!$K$18+5) -> n.v.t. | I7: Gemiddelde | J7: Normalisatie | K7: Formule inverse exponent | M7: 1 basis | N7: 2 prestatie beter dan gemiddelde | O7: 3 herverdeling
B8: =+Data!C9 -> Gaselwest | I8: =AVERAGE(C8:H8) ->  | J8: =+I8/MAX($I$8:$I$17) ->  | K8: =1/EXP(J8) ->  | M8: =ROUND($K$20*K8/$K$18,2) ->  | N8: =IF(I8<$I$18,"ja","nee") ->  | O8: =IF(N8="ja",SUMIF($N$8:$N$17,"ja",$M$8:$M$17)/COUNTIF($N$8:$N$17,"ja"),M8) -> 
B9: =+Data!C10 -> Fluvius Antwerpen | I9: =AVERAGE(C9:H9) ->  | K9: =1/EXP(J9) -> 
B10: =+Data!C11 -> Fluvius Limburg | I10: =AVERAGE(C10:H10) -> 
B11: =+Data!C12 -> Fluvius West
B12: =+Data!C13 -> Imewo
B13: =+Data!C14 -> Intergem
B14: =+Data!C15 -> Iveka
B15: =+Data!C16 -> Iverlek
B16: =+Data!C17 -> PBE
B17: =+Data!C18 -> Sibelgas
H18: gemiddelde: | I18: =AVERAGE(I8:I17) ->  | J18: Totaal: | K18: =SUM(K8:K17) ->  | M18: =SUM(M8:M17) ->  | O18: =SUM(O8:O17) -> 
I20: Totaal te verdelen punten: | K20: =+'Q%'!N18 -> 216

Sheet D1
A1: Forfaitaire vergoedingen wegens laattijdige aansluiting
D3: Waarden af te leiden uit jaarlijkse rapportering m.b.t. kwaliteit dienstverlening door iedere
D4: door distributienetbeheerder afzonderlijk (in te vullen door de VREG).
D5: => Bedragen EUR gecorrigeerd voor indexatie
B7: Forfaitaire vergoedingen wegens laattijdige aansluiting voor de gereguleerde activiteit elektriciteit
C9: =IF('Q%'!$K$19<2,"n.v.t.",'Q%'!$E$5-'Q%'!$K$19) -> 2020 | F9: =IF('Q%'!$K$19<2,"n.v.t.",'Q%'!$E$5-'Q%'!$K$19+1) -> 2021 | I9: =IF('Q%'!$K$19<=2,"n.v.t.",'Q%'!$E$5-'Q%'!$K$19+2) -> 2022 | L9: =IF('Q%'!$K$19<=3,"n.v.t.",'Q%'!$E$5-'Q%'!$K$19+3) -> 2023 | O9: =IF('Q%'!$K$19<=4,"n.v.t.",'Q%'!$E$5-'Q%'!$K$19+4) -> n.v.t. | R9: =IF('Q%'!$K$19<=5,"n.v.t.",'Q%'!$E$5-'Q%'!$K$19+5) -> n.v.t.
C10: Aantal EUR forfaitaire vergoedingen laattijdige aansluiting betaald in dat jaar (gecorrigeerd voor indexatie) | D10: Aantal aansluitingen gerealiseerd door de distributienetbeheerder in dat jaar | E10: EUR/gerealiseerde aansluiting | F10: Aantal EUR forfaitaire vergoedingen laattijdige aansluiting betaald in dat jaar (gecorrigeerd voor indexatie) | G10: Aantal aansluitingen gerealiseerd door de distributienetbeheerder in dat jaar | H10: EUR/gerealiseerde aansluiting | I10: Aantal EUR forfaitaire vergoedingen laattijdige aansluiting betaald in dat jaar (gecorrigeerd voor indexatie) | J10: Aantal aansluitingen gerealiseerd door de distributienetbeheerder in dat jaar | K10: EUR/gerealiseerde aansluiting | L10: Aantal EUR forfaitaire vergoedingen laattijdige aansluiting betaald in dat jaar (gecorrigeerd voor indexatie) | M10: Aantal aansluitingen gerealiseerd door de distributienetbeheerder in dat jaar | N10: EUR/gerealiseerde aansluiting | O10: Aantal EUR forfaitaire vergoedingen laattijdige aansluiting betaald in dat jaar (gecorrigeerd voor indexatie) | P10: Aantal aansluitingen gerealiseerd door de distributienetbeheerder in dat jaar | Q10: EUR/gerealiseerde aansluiting | R10: Aantal EUR forfaitaire vergoedingen laattijdige aansluiting betaald in dat jaar (gecorrigeerd voor indexatie) | S10: Aantal aansluitingen gerealiseerd door de distributienetbeheerder in dat jaar | T10: EUR/gerealiseerde aansluiting | V10: Gemiddelde EUR/gerealiseerde aansluiting | Y10: Gemiddelde EUR/gerealiseerde aansluiting | Z10: Equivalente waarde | AA10: Score | AB10: Puntenverdeling
B11: =+Data!C9 -> Gaselwest | E11: =IF(ISBLANK(C11),"",+C11/D11) ->  | H11: =IF(ISBLANK(F11),"",+F11/G11) ->  | K11: =IF(ISBLANK(I11),"",+I11/J11) ->  | N11: =IF(ISBLANK(L11),"",+L11/M11) ->  | Q11: =IF(ISBLANK(O11),"",+O11/P11) ->  | T11: =IF(ISBLANK(R11),"",+R11/S11) ->  | V11: =+AVERAGE(E11,H11,K11,N11,Q11,T11) ->  | X11: =+B11 -> Gaselwest | Y11: =+V11 ->  | Z11: =+Y11/$V$21 ->  | AA11: =1-(Z11*0.6) ->  | AB11: =ROUND(AA11*$AA$23/$AA$21,2) -> 
B12: =+Data!C10 -> Fluvius Antwerpen | V12: =+AVERAGE(E12,H12,K12,N12,Q12,T12) ->  | X12: =+B12 -> Fluvius Antwerpen | Y12: =+V12 ->  | AA12: =1-(Z12*0.6) -> 
B13: =+Data!C11 -> Fluvius Limburg | X13: Fluvius Limburg
B14: =+Data!C12 -> Fluvius West | X14: Fluvius West
B15: =+Data!C13 -> Imewo | X15: Imewo
B16: =+Data!C14 -> Intergem | X16: Intergem
B17: =+Data!C15 -> Iveka | X17: Iveka
B18: =+Data!C16 -> Iverlek | X18: Iverlek
B19: =+Data!C17 -> PBE | X19: PBE
B20: =+Data!C18 -> Sibelgas | X20: Sibelgas
U21: Maximum: | V21: =MAX(V11:V20) ->  | Z21: Totaal: | AA21: =SUM(AA11:AA20) ->  | AB21: =SUM(AB11:AB20) -> 
X23: Aantal te verdelen punten: | AA23: =+'Q%'!N19 -> 80
B26: Forfaitaire vergoedingen wegens laattijdige aansluiting voor de gereguleerde activiteit aardgas
C28: =IF('Q%'!$K$19<2,"n.v.t.",'Q%'!$E$5-'Q%'!$K$19) -> 2020 | F28: =IF('Q%'!$K$19<2,"n.v.t.",'Q%'!$E$5-'Q%'!$K$19+1) -> 2021 | I28: =IF('Q%'!$K$19<=2,"n.v.t.",'Q%'!$E$5-'Q%'!$K$19+2) -> 2022 | L28: =IF('Q%'!$K$19<=3,"n.v.t.",'Q%'!$E$5-'Q%'!$K$19+3) -> 2023 | O28: =IF('Q%'!$K$19<=4,"n.v.t.",'Q%'!$E$5-'Q%'!$K$19+4) -> n.v.t. | R28: =IF('Q%'!$K$19<=5,"n.v.t.",'Q%'!$E$5-'Q%'!$K$19+5) -> n.v.t.
C29: Aantal EUR forfaitaire vergoedingen laattijdige aansluiting betaald in dat jaar (gecorrigeerd voor indexatie) | D29: Aantal aansluitingen gerealiseerd door de distributienetbeheerder in dat jaar | E29: EUR/gerealiseerde aansluiting | F29: Aantal EUR forfaitaire vergoedingen laattijdige aansluiting betaald in dat jaar (gecorrigeerd voor indexatie) | G29: Aantal aansluitingen gerealiseerd door de distributienetbeheerder in dat jaar | H29: EUR/gerealiseerde aansluiting | I29: Aantal EUR forfaitaire vergoedingen laattijdige aansluiting betaald in dat jaar (gecorrigeerd voor indexatie) | J29: Aantal aansluitingen gerealiseerd door de distributienetbeheerder in dat jaar | K29: EUR/gerealiseerde aansluiting | L29: Aantal EUR forfaitaire vergoedingen laattijdige aansluiting betaald in dat jaar (gecorrigeerd voor indexatie) | M29: Aantal aansluitingen gerealiseerd door de distributienetbeheerder in dat jaar | N29: EUR/gerealiseerde aansluiting | O29: Aantal EUR forfaitaire vergoedingen laattijdige aansluiting betaald in dat jaar (gecorrigeerd voor indexatie) | P29: Aantal aansluitingen gerealiseerd door de distributienetbeheerder in dat jaar | Q29: EUR/gerealiseerde aansluiting | R29: Aantal EUR forfaitaire vergoedingen laattijdige aansluiting betaald in dat jaar (gecorrigeerd voor indexatie) | S29: Aantal aansluitingen gerealiseerd door de distributienetbeheerder in dat jaar | T29: EUR/gerealiseerde aansluiting | V29: Gemiddelde EUR/gerealiseerde aansluiting | Y29: Gemiddelde EUR/gerealiseerde aansluiting | Z29: Equivalente waarde | AA29: Score | AB29: Puntenverdeling
B30: =+Data!C23 -> Gaselwest | E30: =IF(ISBLANK(C30),"",+C30/D30) ->  | H30: =IF(ISBLANK(F30),"",+F30/G30) ->  | K30: =IF(ISBLANK(I30),"",+I30/J30) ->  | N30: =IF(ISBLANK(L30),"",+L30/M30) ->  | Q30: =IF(ISBLANK(O30),"",+O30/P30) ->  | T30: =IF(ISBLANK(R30),"",+R30/S30) ->  | V30: =+AVERAGE(E30,H30,K30,N30,Q30,T30) ->  | X30: =+B30 -> Gaselwest | Y30: =+V30 ->  | Z30: =+Y30/$V$39 ->  | AA30: =1-(Z30*0.6) ->  | AB30: =ROUND(AA30*$AA$41/$AA$39,2) -> 
B31: =+Data!C24 -> Fluvius Antwerpen | X31: Fluvius Antwerpen | Y31: =+V31 ->  | AA31: =1-(Z31*0.6) -> 
B32: =+Data!C25 -> Fluvius Limburg | X32: Fluvius Limburg
B33: =+Data!C26 -> Fluvius West | X33: Fluvius West
B34: =+Data!C27 -> Imewo | X34: Imewo
B35: =+Data!C28 -> Intergem | X35: Intergem
B36: =+Data!C29 -> Iveka | X36: Iveka
B37: =+Data!C30 -> Iverlek | X37: Iverlek
B38: =+Data!C31 -> Sibelgas | X38: Sibelgas
U39: Maximum: | V39: =MAX(V30:V38) ->  | Z39: Totaal: | AA39: =SUM(AA30:AA38) ->  | AB39: =SUM(AB30:AB38) -> 
X41: Aantal te verdelen punten: | AA41: =+'Q%'!P19 -> 80

Sheet D2
A1: Forfaitaire vergoedingen wegens laattijdige heraansluiting
D3: Waarden af te leiden uit jaarlijkse rapportering m.b.t. kwaliteit dienstverlening door iedere
D4: door distributienetbeheerder afzonderlijk (in te vullen door de VREG).
D5: => Bedragen EUR gecorrigeerd voor indexatie
B7: Forfaitaire vergoedingen wegens laattijdige heraansluiting voor de gereguleerde activiteit elektriciteit
C9: =IF('Q%'!$K$20<2,"n.v.t.",'Q%'!$E$5-'Q%'!$K$20) -> 2020 | F9: =IF('Q%'!$K$20<2,"n.v.t.",'Q%'!$E$5-'Q%'!$K$20+1) -> 2021 | I9: =IF('Q%'!$K$20<=2,"n.v.t.",'Q%'!$E$5-'Q%'!$K$20+2) -> 2022 | L9: =IF('Q%'!$K$20<=3,"n.v.t.",'Q%'!$E$5-'Q%'!$K$20+3) -> 2023 | O9: =IF('Q%'!$K$20<=4,"n.v.t.",'Q%'!$E$5-'Q%'!$K$20+4) -> n.v.t. | R9: =IF('Q%'!$K$20<=5,"n.v.t.",'Q%'!$E$5-'Q%'!$K$20+5) -> n.v.t.
C10: Aantal EUR forfaitaire vergoedingen laattijdige heraansluiting betaald in dat jaar (gecorrigeerd voor indexatie) | D10: Aantal heraansluitingen gerealiseerd door de distributienetbeheerder in dat jaar | E10: EUR/gerealiseerde heraansluiting | F10: Aantal EUR forfaitaire vergoedingen laattijdige heraansluiting betaald in dat jaar (gecorrigeerd voor indexatie) | G10: Aantal heraansluitingen gerealiseerd door de distributienetbeheerder in dat jaar | H10: EUR/gerealiseerde heraansluiting | I10: Aantal EUR forfaitaire vergoedingen laattijdige heraansluiting betaald in dat jaar (gecorrigeerd voor indexatie) | J10: Aantal heraansluitingen gerealiseerd door de distributienetbeheerder in dat jaar | K10: EUR/gerealiseerde heraansluiting | L10: Aantal EUR forfaitaire vergoedingen laattijdige heraansluiting betaald in dat jaar (gecorrigeerd voor indexatie) | M10: Aantal heraansluitingen gerealiseerd door de distributienetbeheerder in dat jaar | N10: EUR/gerealiseerde heraansluiting | O10: Aantal EUR forfaitaire vergoedingen laattijdige heraansluiting betaald in dat jaar (gecorrigeerd voor indexatie) | P10: Aantal heraansluitingen gerealiseerd door de distributienetbeheerder in dat jaar | Q10: EUR/gerealiseerde heraansluiting | R10: Aantal EUR forfaitaire vergoedingen laattijdige heraansluiting betaald in dat jaar (gecorrigeerd voor indexatie) | S10: Aantal heraansluitingen gerealiseerd door de distributienetbeheerder in dat jaar | T10: EUR/gerealiseerde heraansluiting | V10: Gemiddelde EUR/gerealiseerde heraansluiting | Y10: Gemiddelde EUR/gerealiseerde heraansluiting | Z10: Equivalente waarde | AA10: Score | AB10: Puntenverdeling
B11: =+Data!C9 -> Gaselwest | E11: =IF(ISBLANK(C11),"",+C11/D11) ->  | H11: =IF(ISBLANK(F11),"",+F11/G11) ->  | K11: =IF(ISBLANK(I11),"",+I11/J11) ->  | N11: =IF(ISBLANK(L11),"",+L11/M11) ->  | Q11: =IF(ISBLANK(O11),"",+O11/P11) ->  | T11: =IF(ISBLANK(R11),"",+R11/S11) ->  | V11: =+AVERAGE(E11,H11,K11,N11,Q11,T11) ->  | X11: =+B11 -> Gaselwest | Y11: =+V11 ->  | Z11: =+V11/$V$21 ->  | AA11: =1-(Z11*0.6) ->  | AB11: =ROUND(AA11*$AA$23/$AA$21,2) -> 
B12: =+Data!C10 -> Fluvius Antwerpen | T12: =IF(ISBLANK(R12),"",+R12/S12) ->  | V12: =+AVERAGE(E12,H12,K12,N12,Q12,T12) ->  | X12: =+B12 -> Fluvius Antwerpen | Y12: =+V12 ->  | AA12: =1-(Z12*0.6) -> 
B13: =+Data!C11 -> Fluvius Limburg | X13: Fluvius Limburg
B14: =+Data!C12 -> Fluvius West | X14: Fluvius West
B15: =+Data!C13 -> Imewo | X15: Imewo
B16: =+Data!C14 -> Intergem | X16: Intergem
B17: =+Data!C15 -> Iveka | X17: Iveka
B18: =+Data!C16 -> Iverlek | X18: Iverlek
B19: =+Data!C17 -> PBE | X19: PBE
B20: =+Data!C18 -> Sibelgas | T20: =IF(ISBLANK(R20),"",+R20/S20) ->  | X20: Sibelgas
U21: Maximum: | V21: =MAX(V11:V20) ->  | Z21: Totaal: | AA21: =SUM(AA11:AA20) ->  | AB21: =SUM(AB11:AB20) -> 
X23: Aantal te verdelen punten: | AA23: =+'Q%'!N20 -> 20
B26: Forfaitaire vergoedingen wegens laattijdige heraansluiting voor de gereguleerde activiteit aardgas
C28: =IF('Q%'!$K$20<2,"n.v.t.",'Q%'!$E$5-'Q%'!$K$20) -> 2020 | F28: =IF('Q%'!$K$20<2,"n.v.t.",'Q%'!$E$5-'Q%'!$K$20+1) -> 2021 | I28: =IF('Q%'!$K$20<=2,"n.v.t.",'Q%'!$E$5-'Q%'!$K$20+2) -> 2022 | L28: =IF('Q%'!$K$20<=3,"n.v.t.",'Q%'!$E$5-'Q%'!$K$20+3) -> 2023 | O28: =IF('Q%'!$K$20<=4,"n.v.t.",'Q%'!$E$5-'Q%'!$K$20+4) -> n.v.t. | R28: =IF('Q%'!$K$20<=5,"n.v.t.",'Q%'!$E$5-'Q%'!$K$20+5) -> n.v.t.
C29: Aantal EUR forfaitaire vergoedingen laattijdige heraansluiting betaald in dat jaar (gecorrigeerd voor indexatie) | D29: Aantal heraansluitingen gerealiseerd door de distributienetbeheerder in dat jaar | E29: EUR/gerealiseerde heraansluiting | F29: Aantal EUR forfaitaire vergoedingen laattijdige heraansluiting betaald in dat jaar (gecorrigeerd voor indexatie) | G29: Aantal heraansluitingen gerealiseerd door de distributienetbeheerder in dat jaar | H29: EUR/gerealiseerde heraansluiting | I29: Aantal EUR forfaitaire vergoedingen laattijdige heraansluiting betaald in dat jaar (gecorrigeerd voor indexatie) | J29: Aantal heraansluitingen gerealiseerd door de distributienetbeheerder in dat jaar | K29: EUR/gerealiseerde heraansluiting | L29: Aantal EUR forfaitaire vergoedingen laattijdige heraansluiting betaald in dat jaar (gecorrigeerd voor indexatie) | M29: Aantal heraansluitingen gerealiseerd door de distributienetbeheerder in dat jaar | N29: EUR/gerealiseerde heraansluiting | O29: Aantal EUR forfaitaire vergoedingen laattijdige heraansluiting betaald in dat jaar (gecorrigeerd voor indexatie) | P29: Aantal heraansluitingen gerealiseerd door de distributienetbeheerder in dat jaar | Q29: EUR/gerealiseerde heraansluiting | R29: Aantal EUR forfaitaire vergoedingen laattijdige heraansluiting betaald in dat jaar (gecorrigeerd voor indexatie) | S29: Aantal heraansluitingen gerealiseerd door de distributienetbeheerder in dat jaar | T29: EUR/gerealiseerde heraansluiting | V29: Gemiddelde EUR/gerealiseerde heraansluiting | Y29: Gemiddelde EUR/gerealiseerde heraansluiting | Z29: Equivalente waarde | AA29: Score | AB29: Puntenverdeling
B30: =+Data!C23 -> Gaselwest | E30: =IF(ISBLANK(C30),"",+C30/D30) ->  | H30: =IF(ISBLANK(F30),"",+F30/G30) ->  | K30: =IF(ISBLANK(I30),"",+I30/J30) ->  | N30: =IF(ISBLANK(L30),"",+L30/M30) ->  | Q30: =IF(ISBLANK(O30),"",+O30/P30) ->  | T30: =IF(ISBLANK(R30),"",+R30/S30) ->  | V30: =+AVERAGE(E30,H30,K30,N30,Q30,T30) ->  | X30: =+B30 -> Gaselwest | Y30: =+V30 ->  | Z30: =+V30/$V$39 ->  | AA30: =1-(Z30*0.6) ->  | AB30: =ROUND(AA30*$AA$41/$AA$39,2) -> 
B31: =+Data!C24 -> Fluvius Antwerpen | X31: Fluvius Antwerpen | Y31: =+V31 ->  | AA31: =1-(Z31*0.6) -> 
B32: =+Data!C25 -> Fluvius Limburg | X32: Fluvius Limburg
B33: =+Data!C26 -> Fluvius West | X33: Fluvius West
B34: =+Data!C27 -> Imewo | X34: Imewo
B35: =+Data!C28 -> Intergem | X35: Intergem
B36: =+Data!C29 -> Iveka | X36: Iveka
B37: =+Data!C30 -> Iverlek | X37: Iverlek
B38: =+Data!C31 -> Sibelgas | X38: Sibelgas
U39: Maximum: | V39: =MAX(V30:V38) ->  | Z39: Totaal: | AA39: =SUM(AA30:AA38) ->  | AB39: =SUM(AB30:AB38) -> 
X41: Aantal te verdelen punten: | AA41: =+'Q%'!P20 -> 20

Sheet Sorteren
A1: Totaalscore per distributienetbeheerder
B3: In onderstaande tabellen wordt een overzicht gegeven van de score op iedere kwaliteitsindicator per distributienetbeheerder
B4: en per gereguleerde activiteit.
B5: Op die manier kan voor iedere distributienetbeheerder de totaalscore worden berekend, die vervolgens in rekening kan worden
B6: genomen voor de bepaling van de kwaliteitsvergoeding in tabblad 'Berekeningsmodel Q'.
B10: Totaalscore voor de gereguleerde activiteit elektriciteit
M12: manueel overzetten
C13: Punten op kwaliteitsindicator
B14: Distributienetbeheerder | C14: A1 | D14: A2 | E14: A3 | F14: A4 | G14: D1 | H14: D2 | I14: Totaal punten | M14: Distributienetbeheerder | N14: Totaal punten | P14: hoog
A15: 1 | B15: =+Data!C9 -> Gaselwest | C15: =VLOOKUP(B15,'A1'!$B$8:$O$17,14,FALSE) ->  | D15: =VLOOKUP(B15,'A2'!$B$8:$O$17,14,FALSE) ->  | E15: =VLOOKUP(B15,'A3'!$B$8:$O$17,14,FALSE) ->  | F15: =VLOOKUP(B15,'A4'!$B$8:$O$17,14,FALSE) ->  | G15: =VLOOKUP(B15,'D1'!$X$11:$AB$20,5,FALSE) ->  | H15: =VLOOKUP(B15,'D2'!$X$11:$AB$20,5,FALSE) ->  | I15: =ROUND(SUM(C15:H15),2) ->  | M15: Fluvius Limburg
A16: 2 | B16: =+Data!C10 -> Fluvius Antwerpen | C16: =VLOOKUP(B16,'A1'!$B$8:$O$17,14,FALSE) ->  | D16: =VLOOKUP(B16,'A2'!$B$8:$O$17,14,FALSE) ->  | E16: =VLOOKUP(B16,'A3'!$B$8:$O$17,14,FALSE) ->  | F16: =VLOOKUP(B16,'A4'!$B$8:$O$17,14,FALSE) ->  | G16: =VLOOKUP(B16,'D1'!$X$11:$AB$20,5,FALSE) ->  | H16: =VLOOKUP(B16,'D2'!$X$11:$AB$20,5,FALSE) ->  | M16: Gaselwest
A17: 3 | B17: =+Data!C11 -> Fluvius Limburg | C17: =VLOOKUP(B17,'A1'!$B$8:$O$17,14,FALSE) ->  | D17: =VLOOKUP(B17,'A2'!$B$8:$O$17,14,FALSE) ->  | E17: =VLOOKUP(B17,'A3'!$B$8:$O$17,14,FALSE) ->  | F17: =VLOOKUP(B17,'A4'!$B$8:$O$17,14,FALSE) ->  | G17: =VLOOKUP(B17,'D1'!$X$11:$AB$20,5,FALSE) ->  | H17: =VLOOKUP(B17,'D2'!$X$11:$AB$20,5,FALSE) ->  | M17: Imewo
A18: 4 | B18: =+Data!C12 -> Fluvius West | C18: =VLOOKUP(B18,'A1'!$B$8:$O$17,14,FALSE) ->  | D18: =VLOOKUP(B18,'A2'!$B$8:$O$17,14,FALSE) ->  | E18: =VLOOKUP(B18,'A3'!$B$8:$O$17,14,FALSE) ->  | F18: =VLOOKUP(B18,'A4'!$B$8:$O$17,14,FALSE) ->  | G18: =VLOOKUP(B18,'D1'!$X$11:$AB$20,5,FALSE) ->  | H18: =VLOOKUP(B18,'D2'!$X$11:$AB$20,5,FALSE) ->  | M18: Fluvius Antwerpen
A19: 5 | B19: =+Data!C13 -> Imewo | C19: =VLOOKUP(B19,'A1'!$B$8:$O$17,14,FALSE) ->  | D19: =VLOOKUP(B19,'A2'!$B$8:$O$17,14,FALSE) ->  | E19: =VLOOKUP(B19,'A3'!$B$8:$O$17,14,FALSE) ->  | F19: =VLOOKUP(B19,'A4'!$B$8:$O$17,14,FALSE) ->  | G19: =VLOOKUP(B19,'D1'!$X$11:$AB$20,5,FALSE) ->  | H19: =VLOOKUP(B19,'D2'!$X$11:$AB$20,5,FALSE) ->  | M19: Iveka
A20: 6 | B20: =+Data!C14 -> Intergem | C20: =VLOOKUP(B20,'A1'!$B$8:$O$17,14,FALSE) ->  | D20: =VLOOKUP(B20,'A2'!$B$8:$O$17,14,FALSE) ->  | E20: =VLOOKUP(B20,'A3'!$B$8:$O$17,14,FALSE) ->  | F20: =VLOOKUP(B20,'A4'!$B$8:$O$17,14,FALSE) ->  | G20: =VLOOKUP(B20,'D1'!$X$11:$AB$20,5,FALSE) ->  | H20: =VLOOKUP(B20,'D2'!$X$11:$AB$20,5,FALSE) ->  | M20: Intergem
A21: 7 | B21: =+Data!C15 -> Iveka | C21: =VLOOKUP(B21,'A1'!$B$8:$O$17,14,FALSE) ->  | D21: =VLOOKUP(B21,'A2'!$B$8:$O$17,14,FALSE) ->  | E21: =VLOOKUP(B21,'A3'!$B$8:$O$17,14,FALSE) ->  | F21: =VLOOKUP(B21,'A4'!$B$8:$O$17,14,FALSE) ->  | G21: =VLOOKUP(B21,'D1'!$X$11:$AB$20,5,FALSE) ->  | H21: =VLOOKUP(B21,'D2'!$X$11:$AB$20,5,FALSE) ->  | M21: Fluvius West
A22: 8 | B22: =+Data!C16 -> Iverlek | C22: =VLOOKUP(B22,'A1'!$B$8:$O$17,14,FALSE) ->  | D22: =VLOOKUP(B22,'A2'!$B$8:$O$17,14,FALSE) ->  | E22: =VLOOKUP(B22,'A3'!$B$8:$O$17,14,FALSE) ->  | F22: =VLOOKUP(B22,'A4'!$B$8:$O$17,14,FALSE) ->  | G22: =VLOOKUP(B22,'D1'!$X$11:$AB$20,5,FALSE) ->  | H22: =VLOOKUP(B22,'D2'!$X$11:$AB$20,5,FALSE) ->  | M22: Iverlek
A23: 9 | B23: =+Data!C17 -> PBE | C23: =VLOOKUP(B23,'A1'!$B$8:$O$17,14,FALSE) ->  | D23: =VLOOKUP(B23,'A2'!$B$8:$O$17,14,FALSE) ->  | E23: =VLOOKUP(B23,'A3'!$B$8:$O$17,14,FALSE) ->  | F23: =VLOOKUP(B23,'A4'!$B$8:$O$17,14,FALSE) ->  | G23: =VLOOKUP(B23,'D1'!$X$11:$AB$20,5,FALSE) ->  | H23: =VLOOKUP(B23,'D2'!$X$11:$AB$20,5,FALSE) ->  | M23: PBE
A24: 10 | B24: =+Data!C18 -> Sibelgas | C24: =VLOOKUP(B24,'A1'!$B$8:$O$17,14,FALSE) ->  | D24: =VLOOKUP(B24,'A2'!$B$8:$O$17,14,FALSE) ->  | E24: =VLOOKUP(B24,'A3'!$B$8:$O$17,14,FALSE) ->  | F24: =VLOOKUP(B24,'A4'!$B$8:$O$17,14,FALSE) ->  | G24: =VLOOKUP(B24,'D1'!$X$11:$AB$20,5,FALSE) ->  | H24: =VLOOKUP(B24,'D2'!$X$11:$AB$20,5,FALSE) ->  | M24: Sibelgas | P24: laag
B27: Totaalscore voor de gereguleerde activiteit aardgas
M29: manueel overzetten
C30: Punten op kwaliteitsindicator
B31: Distributienetbeheerder | C31: D1 | D31: D2 | E31: Totaal punten | M31: Distributienetbeheerder | N31: Totaal punten
A32: 1 | B32: =+Data!C23 -> Gaselwest | C32: =VLOOKUP(B32,'D1'!$X$30:$AB$38,5,FALSE) ->  | D32: =VLOOKUP(B32,'D2'!$X$30:$AB$38,5,FALSE) ->  | E32: =ROUND(SUM(C32:D32),2) ->  | M32: Intergem | P32: hoog
A33: 2 | B33: =+Data!C24 -> Fluvius Antwerpen | C33: =VLOOKUP(B33,'D1'!$X$30:$AB$38,5,FALSE) ->  | D33: =VLOOKUP(B33,'D2'!$X$30:$AB$38,5,FALSE) ->  | M33: Sibelgas
A34: 3 | B34: =+Data!C25 -> Fluvius Limburg | C34: =VLOOKUP(B34,'D1'!$X$30:$AB$38,5,FALSE) ->  | D34: =VLOOKUP(B34,'D2'!$X$30:$AB$38,5,FALSE) ->  | M34: Fluvius Limburg
A35: 4 | B35: =+Data!C26 -> Fluvius West | C35: =VLOOKUP(B35,'D1'!$X$30:$AB$38,5,FALSE) ->  | D35: =VLOOKUP(B35,'D2'!$X$30:$AB$38,5,FALSE) ->  | M35: Iveka
A36: 5 | B36: =+Data!C27 -> Imewo | C36: =VLOOKUP(B36,'D1'!$X$30:$AB$38,5,FALSE) ->  | D36: =VLOOKUP(B36,'D2'!$X$30:$AB$38,5,FALSE) ->  | M36: Imewo
A37: 6 | B37: =+Data!C28 -> Intergem | C37: =VLOOKUP(B37,'D1'!$X$30:$AB$38,5,FALSE) ->  | D37: =VLOOKUP(B37,'D2'!$X$30:$AB$38,5,FALSE) ->  | M37: Iverlek
A38: 7 | B38: =+Data!C29 -> Iveka | C38: =VLOOKUP(B38,'D1'!$X$30:$AB$38,5,FALSE) ->  | D38: =VLOOKUP(B38,'D2'!$X$30:$AB$38,5,FALSE) ->  | M38: Fluvius West
A39: 8 | B39: =+Data!C30 -> Iverlek | C39: =VLOOKUP(B39,'D1'!$X$30:$AB$38,5,FALSE) ->  | D39: =VLOOKUP(B39,'D2'!$X$30:$AB$38,5,FALSE) ->  | M39: Fluvius Antwerpen
A40: 9 | B40: =+Data!C31 -> Sibelgas | C40: =VLOOKUP(B40,'D1'!$X$30:$AB$38,5,FALSE) ->  | D40: =VLOOKUP(B40,'D2'!$X$30:$AB$38,5,FALSE) ->  | M40: Gaselwest | P40: laag

Sheet Berekeningsmodel Q E
A1: Berekeningsmodel verdeling kwaliteitsbedrag elektriciteit | HZ1: elektriciteit
HZ2: aardgas
C4: Gereguleerde activiteit: | D4: elektriciteit
B6: ="Impact kwaliteitsprestaties in periode "&MIN('Q%'!I15:I20)&"-"&'Q%'!E5-1&" naar toegelaten inkomen in reguleringsperiode "&'Q%'!E9&"-"&MAX('Q%'!E9:K9) -> Impact kwaliteitsprestaties in periode 2020-2023 naar toegelaten inkomen in reguleringsperiode 2025-2028 | H6: Bijdrage aan kwaliteitsbedrag Q | K6: Recuperatie uit kwaliteitsbedrag Q | P6: Invloed kwaliteitsbedrag | T6: Beperking impact cap/floor | AI6: q-factor
T8: Marge tot cap | AA8: ="Marge tot floor" -> Marge tot floor
B9: Distributienetbeheerder | C9: Totaal aantal punten voor kwaliteitsprestatie (hoog>laag) | D9: ="Aantal actieve toegangspunten "&D4&" 1 jan."&" "&'Q%'!E5 -> Aantal actieve toegangspunten elektriciteit 1 jan. 2024 | E9: ="Oorspronkelijk toegelaten inkomen endogene kosten "&D4&" "&'Q%'!E9&" (zonder q-factor)" -> Oorspronkelijk toegelaten inkomen endogene kosten elektriciteit 2025 (zonder q-factor) | H9: Bijdrage aan het te herverdelen kwaliteitsbedrag Q (negatief bedrag) | I9: uitgedrukt per toegangspunt | K9: gewogen gemiddelde prestatie volgens aantal toegangspunten na reductie | L9: aandeel in % | M9: Ontvangst uit verdeling bedrag Q (positief bedrag) | N9: uitgedrukt per toegangspunt | P9: =+E9 -> Oorspronkelijk toegelaten inkomen endogene kosten elektriciteit 2025 (zonder q-factor) | Q9: - bijdrage Q + verdeling Q | R9: Impact Q/TI | T9: bedrag boven cap af te staan (positieve waarde) | U9: bedrag mogelijk te ontvangen (positieve waarde) | V9: =+D9 -> Aantal actieve toegangspunten elektriciteit 1 jan. 2024 | W9: potentieel+/tp | X9: score | Y9: bedrag ontvangen (positieve waarde) | Z9: Voorlopige impact na toepassing cap | AA9: bedrag onder floor te ontvangen (positieve waarde) | AB9: bedrag mogelijk af te staan (positieve waarde) | AC9: =+V9 -> Aantal actieve toegangspunten elektriciteit 1 jan. 2024 | AD9: potentieel-/tp | AE9: score | AF9: bedrag af te staan (negatieve waarde) | AG9: Voorlopige impact na toepassing cap | AI9: ="Oorspronkelijk toegelaten inkomen niet-exogene kosten "&D4 -> Oorspronkelijk toegelaten inkomen niet-exogene kosten elektriciteit | AJ9: ="Gecorrigeerd toegelaten inkomen niet-exogene kosten "&D4 -> Gecorrigeerd toegelaten inkomen niet-exogene kosten elektriciteit | AK9: ="Effect kwaliteit dienstverlening op TI jaar "&'Q%'!E9 -> Effect kwaliteit dienstverlening op TI jaar 2025 | AL9: ="basisgedeelte endoge kosten jaar "&'Q%'!E9 -> basisgedeelte endoge kosten jaar 2025 | AM9: ="qi-waarde "&'Q%'!$E$9&"-"&('Q%'!$E$9+'Q%'!$C$9-1) -> qi-waarde 2025-2028 | AN9: Impact per toegangspunt
A10: 1 | B10: =+Sorteren!M15 -> Fluvius Limburg | C10: =+Sorteren!N15 -> 0 | D10: =VLOOKUP($B10,Data!$C$9:$J$18,8,FALSE) -> 0 | E10: =VLOOKUP($B10,Data!$C$9:$K$18,9,FALSE) -> 0 | H10: =ROUND(-$E$23*D10/$D$20,2) ->  | I10: =+H10/D10 ->  | K10: =+C10*D10/$D$20 ->  | L10: =+K10/$K$20 ->  | M10: =+ROUND(L10*$E$23,2) ->  | N10: =+M10/D10 ->  | P10: 0 | Q10: =+H10+M10 ->  | R10: =+Q10/P10 ->  | T10: =MAX((R10-capelek)*P10,0) ->  | U10: =MAX((capelek-R10)*P10,0) ->  | V10: 0 | W10: =+U10/V10 ->  | X10: =+C10 -> 0 | Y10: 0 | Z10: =+(P10+Q10-T10+Y10)/P10-1 ->  | AA10: =MAX((-capelek-Z10)*E10,0) ->  | AB10: =IF(-capelek<Z10,ROUND((Z10+capelek)*E10,2),0) ->  | AC10: 0 | AD10: =+AB10/AC10 ->  | AE10: =+X10 -> 0 | AF10: 0 | AG10: =+(P10+Q10-T10+Y10+AA10+AF10)/E10-1 ->  | AI10: =+E10 -> 0 | AJ10: =+P10+Q10-T10+Y10+AA10+AF10 ->  | AK10: =+AJ10-AI10 ->  | AL10: =VLOOKUP($B10,Data!$C$9:$L$18,10,FALSE) -> 0 | AM10: =ROUND(AK10/AL10,6) ->  | AN10: =ROUND((AJ10-AI10)/D10,2) -> 
A11: 2 | B11: =+Sorteren!M16 -> Gaselwest | C11: =+Sorteren!N16 -> 0 | D11: =VLOOKUP($B11,Data!$C$9:$J$18,8,FALSE) -> 0 | E11: =VLOOKUP($B11,Data!$C$9:$K$18,9,FALSE) -> 0 | P11: 0 | R11: =+Q11/P11 ->  | V11: 0 | X11: 0 | Y11: 0 | Z11: =+(P11+Q11-T11+Y11)/P11-1 ->  | AC11: 0 | AE11: 0 | AF11: 0 | AI11: 0 | AJ11: =+P11+Q11-T11+Y11+AA11+AF11 ->  | AK11: =+AJ11-AI11 ->  | AL11: =VLOOKUP($B11,Data!$C$9:$L$18,10,FALSE) -> 0 | AM11: =ROUND(AK11/AL11,6) -> 
A12: 3 | B12: =+Sorteren!M17 -> Imewo | C12: =+Sorteren!N17 -> 0 | D12: =VLOOKUP($B12,Data!$C$9:$J$18,8,FALSE) -> 0 | E12: =VLOOKUP($B12,Data!$C$9:$K$18,9,FALSE) -> 0 | P12: 0 | V12: 0 | W12: =+U12/V12 ->  | X12: 0 | Y12: 0 | AC12: 0 | AD12: =+AB12/AC12 ->  | AE12: 0 | AF12: 0 | AI12: 0 | AL12: =VLOOKUP($B12,Data!$C$9:$L$18,10,FALSE) -> 0
A13: 4 | B13: =+Sorteren!M18 -> Fluvius Antwerpen | C13: =+Sorteren!N18 -> 0 | D13: =VLOOKUP($B13,Data!$C$9:$J$18,8,FALSE) -> 0 | E13: =VLOOKUP($B13,Data!$C$9:$K$18,9,FALSE) -> 0 | P13: 0 | V13: 0 | W13: =+U13/V13 ->  | X13: 0 | Y13: 0 | AC13: 0 | AD13: =+AB13/AC13 ->  | AE13: 0 | AF13: 0 | AI13: 0 | AL13: =VLOOKUP($B13,Data!$C$9:$L$18,10,FALSE) -> 0
A14: 5 | B14: =+Sorteren!M19 -> Iveka | C14: =+Sorteren!N19 -> 0 | D14: =VLOOKUP($B14,Data!$C$9:$J$18,8,FALSE) -> 0 | E14: =VLOOKUP($B14,Data!$C$9:$K$18,9,FALSE) -> 0 | P14: 0 | V14: 0 | X14: 0 | Y14: 0 | AC14: 0 | AE14: 0 | AF14: 0 | AI14: 0 | AL14: =VLOOKUP($B14,Data!$C$9:$L$18,10,FALSE) -> 0
A15: 6 | B15: =+Sorteren!M20 -> Intergem | C15: =+Sorteren!N20 -> 0 | D15: =VLOOKUP($B15,Data!$C$9:$J$18,8,FALSE) -> 0 | E15: =VLOOKUP($B15,Data!$C$9:$K$18,9,FALSE) -> 0 | P15: 0 | V15: 0 | X15: 0 | Y15: 0 | AC15: 0 | AE15: 0 | AF15: 0 | AI15: 0 | AL15: =VLOOKUP($B15,Data!$C$9:$L$18,10,FALSE) -> 0
A16: 7 | B16: =+Sorteren!M21 -> Fluvius West | C16: =+Sorteren!N21 -> 0 | D16: =VLOOKUP($B16,Data!$C$9:$J$18,8,FALSE) -> 0 | E16: =VLOOKUP($B16,Data!$C$9:$K$18,9,FALSE) -> 0 | P16: 0 | V16: 0 | X16: 0 | Y16: 0 | AC16: 0 | AE16: 0 | AF16: 0 | AI16: 0 | AL16: =VLOOKUP($B16,Data!$C$9:$L$18,10,FALSE) -> 0
A17: 8 | B17: =+Sorteren!M22 -> Iverlek | C17: =+Sorteren!N22 -> 0 | D17: =VLOOKUP($B17,Data!$C$9:$J$18,8,FALSE) -> 0 | E17: =VLOOKUP($B17,Data!$C$9:$K$18,9,FALSE) -> 0 | P17: 0 | V17: 0 | X17: 0 | Y17: 0 | AC17: 0 | AE17: 0 | AF17: 0 | AI17: 0 | AL17: =VLOOKUP($B17,Data!$C$9:$L$18,10,FALSE) -> 0
A18: 9 | B18: =+Sorteren!M23 -> PBE | C18: =+Sorteren!N23 -> 0 | D18: =VLOOKUP($B18,Data!$C$9:$J$18,8,FALSE) -> 0 | E18: =VLOOKUP($B18,Data!$C$9:$K$18,9,FALSE) -> 0 | P18: 0 | V18: 0 | X18: 0 | Y18: 0 | AC18: 0 | AE18: 0 | AF18: 0 | AI18: 0 | AL18: =VLOOKUP($B18,Data!$C$9:$L$18,10,FALSE) -> 0
A19: 11 | B19: =+Sorteren!M24 -> Sibelgas | C19: =+Sorteren!N24 -> 0 | D19: =VLOOKUP($B19,Data!$C$9:$J$18,8,FALSE) -> 0 | E19: =VLOOKUP($B19,Data!$C$9:$K$18,9,FALSE) -> 0 | P19: 0 | V19: 0 | X19: 0 | Y19: 0 | AC19: 0 | AE19: 0 | AF19: 0 | AI19: 0 | AL19: =VLOOKUP($B19,Data!$C$9:$L$18,10,FALSE) -> 0
B20: Totaal: | D20: =SUM(D10:D19) -> 0 | E20: =SUM(E10:E19) -> 0 | H20: =SUM(H10:H19) ->  | K20: =SUM(K10:K19) ->  | L20: =SUM(L10:L19) ->  | M20: =SUM(M10:M19) ->  | Q20: =SUM(Q10:Q19) ->  | T20: =SUM(T10:T19) ->  | Y20: =SUM(Y10:Y19) -> 0 | AA20: =SUM(AA10:AA19) ->  | AF20: =SUM(AF10:AF19) -> 0 | AI20: =SUM(AI10:AI19) -> 0 | AJ20: =SUM(AJ10:AJ19) ->  | AK20: =SUM(AK10:AK19) ->  | AL20: =SUM(AL10:AL19) -> 0
Y21: =SUM(Y10:Y19)-T20 ->  | AF21: =+AF20+AA20 -> 
D22: %TI in balans voor kwaliteitsprikkel: | E22: =+'Q%'!N27 -> 0.00797 | Q22: cap elek: | R22: =+E25 -> 0.01063 | Y22: floor elek: | Z22: =-capelek -> -0.01063 | AG22: =capelek -> 0.01063
D23: Te verdelen kwaliteitsbedrag Q: | E23: =+E22*E20 -> 0
T24: De overdracht vindt plaats in volgorde van de geleverde kwaliteitsprestaties, waarbij de overige distributienetbeheerder die het best presteerde als eerste de over te dragen inkomsten mag ontvangen. De overdracht naar zo’n ontvangende distributienetbeheerder stopt altijd zodra zijn toegelaten inkomen ook de maximumgrens (cap) heeft bereikt. Indien twee of meer overige en ontvangende distributienetbeheerders eenzelfde kwaliteitsscore hebben behaald, dan wordt het over te dragen inkomen aanvankelijk tegelijk aan beiden en pro rata hun aantal actieve toegangspunten toegewezen. | AA24: Deze overdracht vindt plaats in volgorde van de geleverde kwaliteitsprestaties, waarbij de overige distributienetbeheerder die het slechtst presteerde als eerste inkomsten zal afstaan. De overdracht vanuit zo’n inkomsten overdragende overige distributienetbeheerder stopt altijd zodra zijn eigen toegelaten inkomen ook de minimumgrens (negatieve cap) heeft bereikt. Indien twee of meer overige en overdragende distributienetbeheerders eenzelfde kwaliteitsscore hebben behaald, dan wordt het over te dragen inkomen aanvankelijk tegelijk uit beiden en pro rata hun aantal actieve toegangspunten afgestaan.
D25: cap/floor/jaar in reguleringsperiode: | E25: =+capelek -> 0.01063

Sheet Berekeningsmodel Q G
A1: Berekeningsmodel verdeling kwaliteitsbedrag aardgas | IA1: elektriciteit
IA2: aardgas
C4: Gereguleerde activiteit: | D4: aardgas
B6: ="Impact kwaliteitsprestaties in periode "&MIN('Q%'!I15:I20)&"-"&'Q%'!E5-1&" naar toegelaten inkomen in reguleringsperiode "&'Q%'!E9&"-"&MAX('Q%'!E9:K9) -> Impact kwaliteitsprestaties in periode 2020-2023 naar toegelaten inkomen in reguleringsperiode 2025-2028 | H6: Bijdrage aan kwaliteitsbedrag Q | K6: Recuperatie uit kwaliteitsbedrag Q | P6: Netto invloed kwaliteitsbedrag | T6: Beperking impact cap/floor | AI6: q-factor
T8: Marge tot cap | AA8: ="Marge tot floor" -> Marge tot floor
B9: Distributienetbeheerder | C9: Totaal aantal punten voor kwaliteitsprestatie (hoog>laag) | D9: ="Aantal actieve toegangspunten "&D4&" 1 jan."&" "&'Q%'!E5 -> Aantal actieve toegangspunten aardgas 1 jan. 2024 | E9: ="Oorspronkelijk toegelaten inkomen endogene kosten "&D4&" "&'Q%'!E9&" (zonder q-factor)" -> Oorspronkelijk toegelaten inkomen endogene kosten aardgas 2025 (zonder q-factor) | H9: Bijdrage aan het te herverdelen kwaliteitsbedrag Q | I9: uitgedrukt per toegangspunt | K9: gewogen gemiddelde prestatie volgens aantal toegangspunten na reductie | L9: aandeel in % | M9: Ontvangst uit verdeling bedrag Q | N9: uitgedrukt per toegangspunt | P9: =+E9 -> Oorspronkelijk toegelaten inkomen endogene kosten aardgas 2025 (zonder q-factor) | Q9: - bijdrage Q + verdeling Q | R9: Impact Q/TI | T9: bedrag boven cap af te staan (positieve waarde) | U9: bedrag mogelijk te ontvangen (positieve waarde) | V9: =+D9 -> Aantal actieve toegangspunten aardgas 1 jan. 2024 | W9: potentieel+/tp | X9: score | Y9: bedrag ontvangen (positieve waarde) | Z9: Voorlopige impact na toepassing cap | AA9: bedrag onder floor te ontvangen (positieve waarde) | AB9: bedrag mogelijk af te staan (positieve waarde) | AC9: =+V9 -> Aantal actieve toegangspunten aardgas 1 jan. 2024 | AD9: potentieel-/tp | AE9: score | AF9: bedrag af te staan (negatieve waarde) | AG9: Voorlopige impact na toepassing cap | AI9: ="Oorspronkelijk toegelaten inkomen niet-exogene kosten "&D4 -> Oorspronkelijk toegelaten inkomen niet-exogene kosten aardgas | AJ9: ="Gecorrigeerd toegelaten inkomen niet-exogene kosten "&D4 -> Gecorrigeerd toegelaten inkomen niet-exogene kosten aardgas | AK9: ="Effect kwaliteit dienstverlening op TI jaar "&'Q%'!E9 -> Effect kwaliteit dienstverlening op TI jaar 2025 | AL9: ="basisgedeelte endoge kosten jaar "&'Q%'!E9 -> basisgedeelte endoge kosten jaar 2025 | AM9: ="qi-waarde "&'Q%'!$E$9&"-"&('Q%'!$E$9+'Q%'!$C$9-1) -> qi-waarde 2025-2028 | AN9: Impact per toegangspunt
A10: 1 | B10: =+Sorteren!M32 -> Intergem | C10: =+Sorteren!N32 -> 0 | D10: =VLOOKUP($B10,Data!$C$23:$J$31,8,FALSE) -> 0 | E10: =VLOOKUP($B10,Data!$C$23:$K$31,9,FALSE) -> 0 | H10: =ROUND(-$E$22*D10/$D$19,2) ->  | I10: =+H10/D10 ->  | K10: =+C10*D10/$D$19 ->  | L10: =+K10/$K$19 ->  | M10: =+L10*$E$22 ->  | N10: =+M10/D10 ->  | P10: 0 | Q10: =+H10+M10 ->  | R10: =+Q10/P10 ->  | T10: =MAX((R10-capgas)*P10,0) ->  | U10: =MAX((capgas-R10)*P10,0) ->  | V10: 0 | W10: =+U10/V10 ->  | X10: =+C10 -> 0 | Y10: 0 | Z10: =+(P10+Q10-T10+Y10)/E10-1 ->  | AA10: =MAX((-capgas-Z10)*E10,0) ->  | AB10: =IF(-capgas<Z10,ROUND((Z10+capgas)*E10,2),0) ->  | AC10: 0 | AD10: =+AB10/AC10 ->  | AE10: =+X10 -> 0 | AF10: 0 | AG10: =+(P10+Q10-T10+Y10+AA10+AF10)/E10-1 ->  | AI10: =+E10 -> 0 | AJ10: =+P10+Q10-T10+Y10+AA10+AF10 ->  | AK10: =+AJ10-AI10 ->  | AL10: =VLOOKUP($B10,Data!$C$23:$L$31,10,FALSE) -> 0 | AM10: =ROUND(AK10/AL10,6) ->  | AN10: =ROUND((AJ10-AI10)/D10,2) -> 
A11: 2 | B11: =+Sorteren!M33 -> Sibelgas | C11: =+Sorteren!N33 -> 0 | D11: =VLOOKUP($B11,Data!$C$23:$J$31,8,FALSE) -> 0 | E11: =VLOOKUP($B11,Data!$C$23:$K$31,9,FALSE) -> 0 | P11: 0 | R11: =+Q11/P11 ->  | V11: 0 | W11: =+U11/V11 ->  | X11: 0 | Y11: 0 | AC11: 0 | AD11: =+AB11/AC11 ->  | AE11: 0 | AF11: 0 | AI11: 0 | AJ11: =+P11+Q11-T11+Y11+AA11+AF11 ->  | AK11: =+AJ11-AI11 ->  | AL11: =VLOOKUP($B11,Data!$C$23:$L$31,10,FALSE) -> 0 | AM11: =ROUND(AK11/AL11,6) -> 
A12: 3 | B12: =+Sorteren!M34 -> Fluvius Limburg | C12: =+Sorteren!N34 -> 0 | D12: =VLOOKUP($B12,Data!$C$23:$J$31,8,FALSE) -> 0 | E12: =VLOOKUP($B12,Data!$C$23:$K$31,9,FALSE) -> 0 | P12: 0 | V12: 0 | X12: 0 | Y12: 0 | AC12: 0 | AE12: 0 | AF12: 0 | AI12: 0 | AL12: =VLOOKUP($B12,Data!$C$23:$L$31,10,FALSE) -> 0
A13: 4 | B13: =+Sorteren!M35 -> Iveka | C13: =+Sorteren!N35 -> 0 | D13: =VLOOKUP($B13,Data!$C$23:$J$31,8,FALSE) -> 0 | E13: =VLOOKUP($B13,Data!$C$23:$K$31,9,FALSE) -> 0 | P13: 0 | V13: 0 | X13: 0 | Y13: 0 | AC13: 0 | AE13: 0 | AF13: 0 | AI13: 0 | AL13: =VLOOKUP($B13,Data!$C$23:$L$31,10,FALSE) -> 0
A14: 5 | B14: =+Sorteren!M36 -> Imewo | C14: =+Sorteren!N36 -> 0 | D14: =VLOOKUP($B14,Data!$C$23:$J$31,8,FALSE) -> 0 | E14: =VLOOKUP($B14,Data!$C$23:$K$31,9,FALSE) -> 0 | P14: 0 | V14: 0 | X14: 0 | Y14: 0 | AC14: 0 | AE14: 0 | AF14: 0 | AI14: 0 | AL14: =VLOOKUP($B14,Data!$C$23:$L$31,10,FALSE) -> 0
A15: 6 | B15: =+Sorteren!M37 -> Iverlek | C15: =+Sorteren!N37 -> 0 | D15: =VLOOKUP($B15,Data!$C$23:$J$31,8,FALSE) -> 0 | E15: =VLOOKUP($B15,Data!$C$23:$K$31,9,FALSE) -> 0 | P15: 0 | V15: 0 | X15: 0 | Y15: 0 | AC15: 0 | AE15: 0 | AF15: 0 | AI15: 0 | AL15: =VLOOKUP($B15,Data!$C$23:$L$31,10,FALSE) -> 0
A16: 7 | B16: =+Sorteren!M38 -> Fluvius West | C16: =+Sorteren!N38 -> 0 | D16: =VLOOKUP($B16,Data!$C$23:$J$31,8,FALSE) -> 0 | E16: =VLOOKUP($B16,Data!$C$23:$K$31,9,FALSE) -> 0 | P16: 0 | V16: 0 | X16: 0 | Y16: 0 | AC16: 0 | AE16: 0 | AF16: 0 | AI16: 0 | AL16: =VLOOKUP($B16,Data!$C$23:$L$31,10,FALSE) -> 0
A17: 8 | B17: =+Sorteren!M39 -> Fluvius Antwerpen | C17: =+Sorteren!N39 -> 0 | D17: =VLOOKUP($B17,Data!$C$23:$J$31,8,FALSE) -> 0 | E17: =VLOOKUP($B17,Data!$C$23:$K$31,9,FALSE) -> 0 | P17: 0 | V17: 0 | X17: 0 | Y17: 0 | AC17: 0 | AE17: 0 | AF17: 0 | AI17: 0 | AL17: =VLOOKUP($B17,Data!$C$23:$L$31,10,FALSE) -> 0
A18: 9 | B18: =+Sorteren!M40 -> Gaselwest | C18: =+Sorteren!N40 -> 0 | D18: =VLOOKUP($B18,Data!$C$23:$J$31,8,FALSE) -> 0 | E18: =VLOOKUP($B18,Data!$C$23:$K$31,9,FALSE) -> 0 | P18: 0 | V18: 0 | X18: 0 | Y18: 0 | AC18: 0 | AE18: 0 | AF18: 0 | AI18: 0 | AL18: =VLOOKUP($B18,Data!$C$23:$L$31,10,FALSE) -> 0
B19: Totaal: | D19: =SUM(D10:D18) -> 0 | E19: =SUM(E10:E18) -> 0 | H19: =SUM(H10:H18) ->  | K19: =SUM(K10:K18) ->  | L19: =SUM(L10:L18) ->  | M19: =SUM(M10:M18) ->  | Q19: =SUM(Q10:Q18) ->  | T19: =SUM(T10:T18) ->  | Y19: =SUM(Y10:Y18) -> 0 | AA19: =SUM(AA10:AA18) ->  | AF19: =SUM(AF10:AF18) -> 0 | AI19: =SUM(AI10:AI18) -> 0 | AJ19: =SUM(AJ10:AJ18) ->  | AK19: =SUM(AK10:AK18) ->  | AL19: =SUM(AL10:AL18) -> 0
Y20: =SUM(Y10:Y18)-T19 ->  | AF20: =+AF19+AA19 -> 
D21: %TI in balans voor kwaliteitsprikkel: | E21: =+'Q%'!P27 -> 0.00047 | Q21: cap gas: | R21: =+capgas -> 0.00063 | Y21: floor gas: | Z21: =-capgas -> -0.00063 | AG21: =capgas -> 0.00063
D22: Te verdelen kwaliteitsbedrag Q: | E22: =+E21*E19 -> 0
T23: De overdracht vindt plaats in volgorde van de geleverde kwaliteitsprestaties, waarbij de overige distributienetbeheerder die het best presteerde als eerste de over te dragen inkomsten mag ontvangen. De overdracht naar zo’n ontvangende distributienetbeheerder stopt altijd zodra zijn toegelaten inkomen ook de maximumgrens (cap) heeft bereikt. Indien twee of meer overige en ontvangende distributienetbeheerders eenzelfde kwaliteitsscore hebben behaald, dan wordt het over te dragen inkomen aanvankelijk tegelijk aan beiden en pro rata hun aantal actieve toegangspunten toegewezen. | AA23: Deze overdracht vindt plaats in volgorde van de geleverde kwaliteitsprestaties, waarbij de overige distributienetbeheerder die het slechtst presteerde als eerste inkomsten zal afstaan. De overdracht vanuit zo’n inkomsten overdragende overige distributienetbeheerder stopt altijd zodra zijn eigen toegelaten inkomen ook de minimumgrens (negatieve cap) heeft bereikt. Indien twee of meer overige en overdragende distributienetbeheerders eenzelfde kwaliteitsscore hebben behaald, dan wordt het over te dragen inkomen aanvankelijk tegelijk uit beiden en pro rata hun aantal actieve toegangspunten afgestaan.
D24: cap/floor/jaar in reguleringsperiode: | E24: =+capgas -> 0.00063
